[Event "Live Chess"]
[Site "Chess.com"]
[Date "2024.06.01"]
[Round "-"]
[White "febray_27"]
[Black "WilliamofOrange16th"]
[Result "1-0"]
[WhiteElo "2021"]
[BlackElo "1944"]
[TimeControl "300"]
[EndTime "10:44:16 PDT"]
[Termination "febray_27 won by resignation"]

1. Nf3 {[%clk 0:04:56.9]} 1... g6 {[%clk 0:04:56.9]} 2. d4 {[%clk 0:04:55.2]}
2... Bg7 {[%clk 0:04:56.8]} 3. g3 {[%clk 0:04:54.3]} 3... d6 {[%clk 0:04:55.1]}
4. Bg2 {[%clk 0:04:53.8]} 4... Nf6 {[%clk 0:04:52.7]} 5. O-O {[%clk 0:04:53.1]}
5... Nbd7 {[%clk 0:04:52.1]} 6. c4 {[%clk 0:04:51.2]} 6... e5 {[%clk 0:04:51.4]}
7. dxe5 {[%clk 0:04:50]} 7... Nxe5 {[%clk 0:04:49.4]} 8. Nc3 {[%clk 0:04:48.6]}
8... Nxf3+ {[%clk 0:04:46.7]} 9. exf3 {[%clk 0:04:46.4]} 9... O-O {[%clk
0:04:46.6]} 10. Bf4 {[%clk 0:04:40.3]} 10... Be6 {[%clk 0:04:45.9]} 11. Qd3
{[%clk 0:04:31.9]} 11... Nh5 {[%clk 0:04:41.4]} 12. Be3 {[%clk 0:04:26.7]} 12...
Qf6 {[%clk 0:04:23.2]} 13. Rac1 {[%clk 0:04:15.7]} 13... Rfd8 {[%clk 0:04:18.1]}
14. b3 {[%clk 0:04:12.8]} 14... c6 {[%clk 0:04:17.4]} 15. Ne4 {[%clk 0:04:10.8]}
15... Qe7 {[%clk 0:04:16.5]} 16. Bg5 {[%clk 0:03:52.5]} 16... f6 {[%clk
0:04:07.9]} 17. Be3 {[%clk 0:03:49.1]} 17... d5 {[%clk 0:04:06.7]} 18. cxd5
{[%clk 0:03:46.3]} 18... Bxd5 {[%clk 0:04:00.9]} 19. g4 {[%clk 0:03:30.6]} 19...
f5 {[%clk 0:03:53.5]} 20. gxh5 {[%clk 0:03:20]} 20... fxe4 {[%clk 0:03:52.5]}
21. fxe4 {[%clk 0:03:19.2]} 21... Be6 {[%clk 0:03:38.7]} 22. Qe2 {[%clk
0:03:16.8]} 22... g5 {[%clk 0:03:30.6]} 23. Rfd1 {[%clk 0:03:09.6]} 23... h6
{[%clk 0:03:28.9]} 24. Rxd8+ {[%clk 0:03:03.9]} 24... Rxd8 {[%clk 0:03:28.8]}
25. Rd1 {[%clk 0:03:03.4]} 25... Be5 {[%clk 0:03:21.5]} 26. Rxd8+ {[%clk
0:02:48.8]} 26... Qxd8 {[%clk 0:03:21.4]} 27. Qd2 {[%clk 0:02:48.5]} 27... Qxd2
{[%clk 0:03:09.6]} 28. Bxd2 {[%clk 0:02:47.2]} 28... Bg4 {[%clk 0:02:51.4]} 29.
Be3 {[%clk 0:02:36.9]} 29... b6 {[%clk 0:02:49.6]} 30. f3 {[%clk 0:02:32.7]}
30... Bxh5 {[%clk 0:02:48.2]} 31. h3 {[%clk 0:02:31.4]} 31... Bf7 {[%clk
0:02:36.2]} 32. Kf2 {[%clk 0:02:28.8]} 32... Kg7 {[%clk 0:02:34.2]} 33. Bf1
{[%clk 0:02:26.4]} 33... Kf6 {[%clk 0:02:33]} 34. Ke2 {[%clk 0:02:19.9]} 34...
Be6 {[%clk 0:02:31]} 35. Kd3 {[%clk 0:02:18.4]} 35... c5 {[%clk 0:02:28.1]} 36.
Bf2 {[%clk 0:02:09.6]} 36... Ke7 {[%clk 0:02:22.6]} 37. h4 {[%clk 0:02:07.3]}
37... Bf4 {[%clk 0:02:14.4]} 38. hxg5 {[%clk 0:01:45.1]} 38... Bxg5 {[%clk
0:02:14.3]} 39. Bg3 {[%clk 0:01:44.7]} 39... h5 {[%clk 0:02:06.7]} 40. f4 {[%clk
0:01:42.9]} 40... h4 {[%clk 0:01:59.4]} 41. fxg5 {[%clk 0:01:34]} 41... hxg3
{[%clk 0:01:58.1]} 42. Ke3 {[%clk 0:01:32.5]} 42... Bg4 {[%clk 0:01:56.9]} 43.
Kf4 {[%clk 0:01:30.1]} 43... Bd1 {[%clk 0:01:45.6]} 44. Kxg3 {[%clk 0:01:26.3]}
44... Kf7 {[%clk 0:01:44.8]} 45. Kf4 {[%clk 0:01:25.4]} 45... Kg6 {[%clk
0:01:43.3]} 46. Bd3 {[%clk 0:01:23.7]} 46... Bg4 {[%clk 0:01:36.3]} 47. e5+
{[%clk 0:01:22.5]} 47... Kg7 {[%clk 0:01:35.5]} 48. Kxg4 {[%clk 0:01:21.7]} 1-0

[Event "Live Chess"]
[Site "Chess.com"]
[Date "2024.06.01"]
[Round "-"]
[White "f4nomore"]
[Black "CennyddB"]
[Result "1/2-1/2"]
[WhiteElo "1202"]
[BlackElo "1136"]
[TimeControl "300"]
[EndTime "10:44:24 PDT"]
[Termination "Game drawn - timeout vs insufficient material"]

1. d4 {[%clk 0:04:54.9]} 1... d5 {[%clk 0:04:58.3]} 2. Nc3 {[%clk 0:04:52.9]}
2... Nf6 {[%clk 0:04:47.7]} 3. Bg5 {[%clk 0:04:50.7]} 3... Ne4 {[%clk
0:04:43.4]} 4. Nxe4 {[%clk 0:04:46.5]} 4... dxe4 {[%clk 0:04:42.2]} 5. e3 {[%clk
0:04:39.7]} 5... h6 {[%clk 0:04:29.4]} 6. Bh4 {[%clk 0:04:37.4]} 6... Nd7 {[%clk
0:04:17.2]} 7. Bc4 {[%clk 0:04:33]} 7... Nf6 {[%clk 0:04:08.9]} 8. Bxf6 {[%clk
0:04:29.9]} 8... exf6 {[%clk 0:04:07.6]} 9. f3 {[%clk 0:04:26.4]} 9... f5 {[%clk
0:04:05.6]} 10. fxe4 {[%clk 0:04:23.9]} 10... fxe4 {[%clk 0:04:04.6]} 11. Ne2
{[%clk 0:04:22.3]} 11... Bg4 {[%clk 0:04:00]} 12. O-O {[%clk 0:04:19.7]} 12...
f5 {[%clk 0:03:51.5]} 13. Qe1 {[%clk 0:04:02.8]} 13... Bxe2 {[%clk 0:03:41.3]}
14. Qxe2 {[%clk 0:04:01.3]} 14... Qd7 {[%clk 0:03:31.1]} 15. Qh5+ {[%clk
0:03:57.4]} 15... Kd8 {[%clk 0:02:58.4]} 16. Rxf5 {[%clk 0:03:49.9]} 16... Bd6
{[%clk 0:02:14.1]} 17. Rf7 {[%clk 0:03:13.1]} 17... Qe8 {[%clk 0:02:13.2]} 18.
Qh4+ {[%clk 0:02:55.3]} 18... Be7 {[%clk 0:02:11.6]} 19. Qxe4 {[%clk 0:02:49.3]}
19... c6 {[%clk 0:01:37.6]} 20. Raf1 {[%clk 0:02:40.8]} 20... Rf8 {[%clk
0:01:35.1]} 21. Rxf8 {[%clk 0:02:09.6]} 21... Bxf8 {[%clk 0:01:33.2]} 22. Qf3
{[%clk 0:01:55]} 22... Be7 {[%clk 0:01:22.1]} 23. d5 {[%clk 0:01:46.9]} 23...
Bc5 {[%clk 0:01:10]} 24. dxc6 {[%clk 0:01:33.9]} 24... Bxe3+ {[%clk 0:01:07.6]}
25. Kh1 {[%clk 0:01:30.4]} 25... bxc6 {[%clk 0:01:06.4]} 26. Rd1+ {[%clk
0:01:18.2]} 26... Kc7 {[%clk 0:01:05]} 27. Qg3+ {[%clk 0:01:06.3]} 27... Kb6
{[%clk 0:00:54]} 28. h3 {[%clk 0:00:56.5]} 28... g5 {[%clk 0:00:45.4]} 29. Re1
{[%clk 0:00:49.1]} 29... Rd8 {[%clk 0:00:30.5]} 30. Qxe3+ {[%clk 0:00:38]} 30...
Qxe3 {[%clk 0:00:21.2]} 31. Rxe3 {[%clk 0:00:36.1]} 31... Rd1+ {[%clk
0:00:19.9]} 32. Kh2 {[%clk 0:00:35]} 32... Rd2 {[%clk 0:00:18.3]} 33. Rb3+
{[%clk 0:00:31.9]} 33... Kc5 {[%clk 0:00:17]} 34. Bd3 {[%clk 0:00:22.5]} 34...
Rd1 {[%clk 0:00:15.1]} 35. Ra3 {[%clk 0:00:19.4]} 35... Rb1 {[%clk 0:00:11.9]}
36. Rxa7 {[%clk 0:00:17.6]} 36... Rxb2 {[%clk 0:00:11.3]} 37. Rh7 {[%clk
0:00:15.6]} 37... Rxa2 {[%clk 0:00:10]} 38. Rxh6 {[%clk 0:00:14.7]} 38... Ra4
{[%clk 0:00:08.5]} 39. Rg6 {[%clk 0:00:13.2]} 39... Rh4 {[%clk 0:00:07.2]} 40.
Rxg5+ {[%clk 0:00:11.5]} 40... Kd4 {[%clk 0:00:07]} 41. Rg4+ {[%clk 0:00:10]}
41... Kc3 {[%clk 0:00:06.6]} 42. Rxh4 {[%clk 0:00:08.5]} 42... Kd2 {[%clk
0:00:05.6]} 43. Rc4 {[%clk 0:00:06.8]} 43... Ke3 {[%clk 0:00:04.3]} 44. Rxc6
{[%clk 0:00:05.7]} 44... Kd2 {[%clk 0:00:03.8]} 45. h4 {[%clk 0:00:04.3]} 45...
Ke3 {[%clk 0:00:03.5]} 46. h5 {[%clk 0:00:04.2]} 46... Kf4 {[%clk 0:00:03.1]}
47. h6 {[%clk 0:00:04.1]} 47... Kg4 {[%clk 0:00:02]} 48. h7 {[%clk 0:00:04]}
48... Kf4 {[%clk 0:00:01.5]} 49. h8=Q {[%clk 0:00:02.8]} 49... Ke3 {[%clk
0:00:01.4]} 50. Qc3 {[%clk 0:00:00.9]} 50... Kf2 {[%clk 0:00:01.3]} 1/2-1/2

[Event "Live Chess"]
[Site "Chess.com"]
[Date "2024.06.01"]
[Round "-"]
[White "Mangoalo"]
[Black "GoldsmanB"]
[Result "0-1"]
[WhiteElo "1003"]
[BlackElo "1045"]
[TimeControl "300"]
[EndTime "10:44:42 PDT"]
[Termination "GoldsmanB won by resignation"]

1. Nf3 {[%clk 0:04:57]} 1... d5 {[%clk 0:04:58.4]} 2. d4 {[%clk 0:04:56.9]} 2...
Nf6 {[%clk 0:04:55.9]} 3. Bf4 {[%clk 0:04:56.8]} 3... e6 {[%clk 0:04:54]} 4. Nc3
{[%clk 0:04:56]} 4... Bd6 {[%clk 0:04:53]} 5. Bg3 {[%clk 0:04:53.5]} 5... O-O
{[%clk 0:04:51.8]} 6. e3 {[%clk 0:04:50.6]} 6... c5 {[%clk 0:04:50.5]} 7. dxc5
{[%clk 0:04:48.9]} 7... Bxc5 {[%clk 0:04:49.1]} 8. Bb5 {[%clk 0:04:48.5]} 8...
Nc6 {[%clk 0:04:47.6]} 9. Bxc6 {[%clk 0:04:46.9]} 9... bxc6 {[%clk 0:04:47]} 10.
O-O {[%clk 0:04:43.1]} 10... Ba6 {[%clk 0:04:45.2]} 11. Re1 {[%clk 0:04:40.3]}
11... Rb8 {[%clk 0:04:42.4]} 12. b3 {[%clk 0:04:37.5]} 12... Bb4 {[%clk
0:04:41]} 13. Qd2 {[%clk 0:04:33.1]} 13... Qa5 {[%clk 0:04:39.5]} 14. Be5 {[%clk
0:04:17.6]} 14... Ng4 {[%clk 0:04:30.8]} 15. h3 {[%clk 0:04:13.4]} 15... Nxe5
{[%clk 0:04:28.8]} 16. Nxe5 {[%clk 0:04:11.5]} 16... Bxc3 {[%clk 0:04:27.2]} 0-1

[Event "Live Chess"]
[Site "Chess.com"]
[Date "2024.06.01"]
[Round "-"]
[White "CarmelJane"]
[Black "Larchikov"]
[Result "0-1"]
[WhiteElo "2093"]
[BlackElo "2043"]
[TimeControl "300"]
[EndTime "10:44:50 PDT"]
[Termination "Larchikov won by resignation"]

1. e4 {[%clk 0:04:59]} 1... c6 {[%clk 0:04:54.4]} 2. d4 {[%clk 0:04:56.6]} 2...
d5 {[%clk 0:04:51.1]} 3. e5 {[%clk 0:04:56.1]} 3... Bf5 {[%clk 0:04:48.5]} 4.
Nf3 {[%clk 0:04:55.5]} 4... e6 {[%clk 0:04:46.5]} 5. Be2 {[%clk 0:04:54.8]} 5...
Be7 {[%clk 0:04:45.2]} 6. O-O {[%clk 0:04:53.8]} 6... Nd7 {[%clk 0:04:43.7]} 7.
Be3 {[%clk 0:04:48.7]} 7... Nh6 {[%clk 0:04:41.3]} 8. Nbd2 {[%clk 0:04:44.8]}
8... Ng4 {[%clk 0:04:39]} 9. c4 {[%clk 0:04:34.3]} 9... Nxe3 {[%clk 0:04:34.4]}
10. fxe3 {[%clk 0:04:34.2]} 10... dxc4 {[%clk 0:04:32.2]} 11. Bxc4 {[%clk
0:04:26]} 11... Nb6 {[%clk 0:04:29.5]} 12. Bb3 {[%clk 0:04:24.2]} 12... c5
{[%clk 0:04:26.6]} 13. e4 {[%clk 0:04:04.9]} 13... Bg6 {[%clk 0:04:18.4]} 14.
Ba4+ {[%clk 0:03:59]} 14... Nxa4 {[%clk 0:04:12.9]} 15. Qxa4+ {[%clk 0:03:58.9]}
15... Qd7 {[%clk 0:04:10.2]} 16. Qxd7+ {[%clk 0:03:57.2]} 16... Kxd7 {[%clk
0:04:10.1]} 17. d5 {[%clk 0:03:52.3]} 17... Bd8 {[%clk 0:03:43.8]} 18. Nc4
{[%clk 0:03:11.1]} 18... Bxe4 {[%clk 0:03:39.8]} 19. dxe6+ {[%clk 0:03:10]}
19... fxe6 {[%clk 0:03:26.8]} 20. Rad1+ {[%clk 0:03:03.9]} 20... Bd5 {[%clk
0:03:18.3]} 21. Ne3 {[%clk 0:02:52.3]} 21... Kc6 {[%clk 0:03:15]} 22. Nxd5
{[%clk 0:02:36.2]} 22... exd5 {[%clk 0:03:14.9]} 23. e6 {[%clk 0:02:33.6]} 23...
Bc7 {[%clk 0:03:12.5]} 24. Ng5 {[%clk 0:02:31.3]} 24... Rhe8 {[%clk 0:03:08.5]}
25. Nxh7 {[%clk 0:01:46.9]} 25... Rxe6 {[%clk 0:03:02.6]} 26. Ng5 {[%clk
0:01:46.4]} 26... Rg6 {[%clk 0:02:57.6]} 27. Nf7 {[%clk 0:01:40]} 27... Re8
{[%clk 0:02:42.9]} 28. g3 {[%clk 0:01:37.2]} 28... Rf6 {[%clk 0:02:34]} 29.
Rxf6+ {[%clk 0:01:32.9]} 29... gxf6 {[%clk 0:02:33.9]} 30. Nh6 {[%clk
0:01:29.4]} 30... Be5 {[%clk 0:02:31.5]} 31. b3 {[%clk 0:01:26.6]} 31... Bd4+
{[%clk 0:02:30.1]} 32. Kf1 {[%clk 0:01:23.9]} 32... Be5 {[%clk 0:02:24.1]} 33.
Nf5 {[%clk 0:01:17.1]} 33... c4 {[%clk 0:02:21.3]} 34. bxc4 {[%clk 0:01:13.7]}
34... dxc4 {[%clk 0:02:21.2]} 35. Kf2 {[%clk 0:01:05]} 35... b5 {[%clk
0:02:15.6]} 36. h4 {[%clk 0:00:57.9]} 36... Kc5 {[%clk 0:02:12.2]} 37. h5 {[%clk
0:00:56.9]} 37... c3 {[%clk 0:02:08.9]} 38. h6 {[%clk 0:00:54.5]} 38... Kb4
{[%clk 0:02:04.2]} 39. h7 {[%clk 0:00:51]} 39... c2 {[%clk 0:01:50.3]} 40. Rc1
{[%clk 0:00:45]} 40... Kc3 {[%clk 0:01:48.3]} 41. Ne3 {[%clk 0:00:44]} 41... Bd4
{[%clk 0:01:46.7]} 42. Rxc2+ {[%clk 0:00:42.6]} 42... Kd3 {[%clk 0:01:45.4]} 43.
Re2 {[%clk 0:00:38.8]} 43... Rh8 {[%clk 0:01:35.4]} 44. Kf3 {[%clk 0:00:34.9]}
44... Rxh7 {[%clk 0:01:32]} 45. Nf5 {[%clk 0:00:33.9]} 45... Be5 {[%clk
0:01:28.2]} 46. Re4 {[%clk 0:00:31.1]} 46... Rc7 {[%clk 0:01:23.9]} 47. Rb4
{[%clk 0:00:29.8]} 47... a6 {[%clk 0:01:22]} 48. Rb3+ {[%clk 0:00:29.1]} 48...
Rc3 {[%clk 0:01:19.2]} 49. Rb1 {[%clk 0:00:26.7]} 49... Kc2+ {[%clk 0:01:17.3]}
50. Ne3+ {[%clk 0:00:26.1]} 0-1

[Event "Live Chess"]
[Site "Chess.com"]
[Date "2024.06.01"]
[Round "-"]
[White "DoctorMantisTobogganMD"]
[Black "ChessRobinThePro"]
[Result "1/2-1/2"]
[WhiteElo "2183"]
[BlackElo "1959"]
[TimeControl "300"]
[EndTime "10:44:56 PDT"]
[Termination "Game drawn by repetition"]

1. e4 {[%clk 0:04:59.5]} 1... Nc6 {[%clk 0:04:53]} 2. Nc3 {[%clk 0:04:58.8]}
2... e5 {[%clk 0:04:48.9]} 3. Bc4 {[%clk 0:04:58.3]} 3... Nf6 {[%clk 0:04:45.4]}
4. d3 {[%clk 0:04:56.3]} 4... Bc5 {[%clk 0:04:41]} 5. f4 {[%clk 0:04:49.6]} 5...
d6 {[%clk 0:04:35.6]} 6. Nf3 {[%clk 0:04:48.2]} 6... a6 {[%clk 0:04:28.5]} 7. f5
{[%clk 0:04:28.4]} 7... Nd4 {[%clk 0:04:14]} 8. Nxd4 {[%clk 0:03:47.5]} 8...
Bxd4 {[%clk 0:04:11.7]} 9. Bg5 {[%clk 0:03:25.2]} 9... c6 {[%clk 0:04:07.3]} 10.
Qc1 {[%clk 0:03:18.5]} 10... b5 {[%clk 0:04:01]} 11. Bb3 {[%clk 0:03:17.2]}
11... Qb6 {[%clk 0:03:56.5]} 12. Nd1 {[%clk 0:03:10.5]} 12... Ng4 {[%clk
0:03:43.3]} 13. h3 {[%clk 0:03:03.4]} 13... Nf2 {[%clk 0:03:37]} 14. Nxf2 {[%clk
0:02:58]} 14... Bxf2+ {[%clk 0:03:34.8]} 15. Ke2 {[%clk 0:02:57.6]} 15... f6
{[%clk 0:03:31.1]} 16. Be3 {[%clk 0:02:56.2]} 16... Bxe3 {[%clk 0:03:28.8]} 17.
Qxe3 {[%clk 0:02:56.1]} 17... Qxe3+ {[%clk 0:03:27]} 18. Kxe3 {[%clk 0:02:56]}
18... Ke7 {[%clk 0:03:23.8]} 19. a4 {[%clk 0:02:54.3]} 19... Bd7 {[%clk
0:03:20.7]} 20. g4 {[%clk 0:02:52.1]} 20... h5 {[%clk 0:03:13.6]} 21. axb5
{[%clk 0:02:44.7]} 21... axb5 {[%clk 0:03:11.7]} 22. Rxa8 {[%clk 0:02:42.5]}
22... Rxa8 {[%clk 0:03:10.2]} 23. Rg1 {[%clk 0:02:07.6]} 23... h4 {[%clk
0:03:07.5]} 24. g5 {[%clk 0:02:06.4]} 24... Rd8 {[%clk 0:02:47.9]} 25. gxf6+
{[%clk 0:01:48.6]} 25... gxf6 {[%clk 0:02:46.7]} 26. Rg7+ {[%clk 0:01:46.8]}
26... Ke8 {[%clk 0:02:45.8]} 27. Rh7 {[%clk 0:01:40.6]} 27... Bc8 {[%clk
0:02:42.1]} 28. Rxh4 {[%clk 0:01:38.2]} 28... d5 {[%clk 0:02:40.9]} 29. Rh8+
{[%clk 0:01:35.1]} 29... Ke7 {[%clk 0:02:39.7]} 30. Rxd8 {[%clk 0:01:35]} 30...
Kxd8 {[%clk 0:02:37.9]} 31. h4 {[%clk 0:01:26.5]} 31... d4+ {[%clk 0:02:34.3]}
32. Kf3 {[%clk 0:01:22.1]} 32... Ke7 {[%clk 0:02:33.2]} 33. Kg4 {[%clk
0:01:20.1]} 33... Kf8 {[%clk 0:02:31.5]} 34. h5 {[%clk 0:01:10.6]} 34... Kg7
{[%clk 0:02:30.2]} 35. Kh4 {[%clk 0:01:09.8]} 35... Kh6 {[%clk 0:02:28.5]} 36.
Bf7 {[%clk 0:01:08.8]} 36... Bd7 {[%clk 0:02:26.5]} 37. Bg6 {[%clk 0:01:08.1]}
37... c5 {[%clk 0:02:22.8]} 38. Kg3 {[%clk 0:01:07.4]} 38... Kg5 {[%clk
0:02:10.8]} 39. Kf2 {[%clk 0:01:06.5]} 39... Bc6 {[%clk 0:02:05.1]} 40. Ke2
{[%clk 0:01:05.1]} 40... c4 {[%clk 0:02:01.5]} 41. Kd2 {[%clk 0:01:00.1]} 41...
Bd7 {[%clk 0:01:50.7]} 42. c3 {[%clk 0:00:50.2]} 42... cxd3 {[%clk 0:01:47.8]}
43. Kxd3 {[%clk 0:00:48.7]} 43... dxc3 {[%clk 0:01:46.4]} 44. bxc3 {[%clk
0:00:42.7]} 44... Bc6 {[%clk 0:01:45.3]} 45. Ke3 {[%clk 0:00:42.2]} 45... Bd7
{[%clk 0:01:40.8]} 46. Bf7 {[%clk 0:00:40.7]} 46... Bc6 {[%clk 0:01:38.2]} 47.
Bd5 {[%clk 0:00:33.4]} 47... Bd7 {[%clk 0:01:34.8]} 48. Bf7 {[%clk 0:00:30.6]}
48... Bc6 {[%clk 0:01:33.5]} 49. Kf3 {[%clk 0:00:30]} 49... Bd7 {[%clk
0:01:30.8]} 50. Be6 {[%clk 0:00:25.9]} 50... Bc6 {[%clk 0:01:29.5]} 51. Bd5
{[%clk 0:00:25.3]} 51... Bd7 {[%clk 0:01:28.5]} 52. c4 {[%clk 0:00:24.8]} 52...
bxc4 {[%clk 0:01:26.5]} 53. Bxc4 {[%clk 0:00:24]} 53... Kxh5 {[%clk 0:01:25]}
54. Bd5 {[%clk 0:00:23.1]} 54... Kg5 {[%clk 0:01:23.6]} 55. Kg3 {[%clk 0:00:23]}
55... Ba4 {[%clk 0:01:21.3]} 56. Bb7 {[%clk 0:00:22.1]} 56... Bc2 {[%clk
0:01:17.2]} 57. Bd5 {[%clk 0:00:21.3]} 57... Bd3 {[%clk 0:01:16]} 58. Bc6 {[%clk
0:00:20.4]} 58... Bc2 {[%clk 0:01:14]} 59. Bb7 {[%clk 0:00:19.8]} 59... Bd3
{[%clk 0:01:12.7]} 60. Bd5 {[%clk 0:00:19.4]} 60... Kh5 {[%clk 0:01:11]} 61. Bc6
{[%clk 0:00:18.7]} 61... Kg5 {[%clk 0:01:10.1]} 62. Bd5 {[%clk 0:00:18.4]} 62...
Bc2 {[%clk 0:01:08.9]} 63. Bc6 {[%clk 0:00:18]} 63... Bd3 {[%clk 0:01:07.9]} 64.
Bd5 {[%clk 0:00:17.6]} 1/2-1/2

[Event "Live Chess"]
[Site "Chess.com"]
[Date "2024.06.01"]
[Round "-"]
[White "karina55"]
[Black "blunderabit"]
[Result "1-0"]
[WhiteElo "1853"]
[BlackElo "1802"]
[TimeControl "300"]
[EndTime "10:44:58 PDT"]
[Termination "karina55 won on time"]

1. e4 {[%clk 0:04:58.5]} 1... c5 {[%clk 0:04:56.8]} 2. Nc3 {[%clk 0:04:56]} 2...
Nc6 {[%clk 0:04:54.1]} 3. g3 {[%clk 0:04:53.7]} 3... g6 {[%clk 0:04:51.9]} 4.
Bg2 {[%clk 0:04:53.3]} 4... Bg7 {[%clk 0:04:51.1]} 5. d3 {[%clk 0:04:52.7]} 5...
d6 {[%clk 0:04:50.5]} 6. Nge2 {[%clk 0:04:50.8]} 6... e6 {[%clk 0:04:47.6]} 7.
O-O {[%clk 0:04:46.9]} 7... Nge7 {[%clk 0:04:42.1]} 8. Be3 {[%clk 0:04:45.6]}
8... b6 {[%clk 0:04:37.8]} 9. Qd2 {[%clk 0:04:43.9]} 9... h5 {[%clk 0:04:32.3]}
10. h4 {[%clk 0:04:38.7]} 10... Bb7 {[%clk 0:04:23.5]} 11. Nf4 {[%clk
0:04:28.4]} 11... Qd7 {[%clk 0:04:21.7]} 12. Nh3 {[%clk 0:04:26.3]} 12... d5
{[%clk 0:04:03]} 13. exd5 {[%clk 0:04:22.8]} 13... exd5 {[%clk 0:04:00.7]} 14.
Bf4 {[%clk 0:04:14.8]} 14... O-O {[%clk 0:03:46.1]} 15. Rfe1 {[%clk 0:04:10.1]}
15... Nd4 {[%clk 0:03:40.9]} 16. Be5 {[%clk 0:03:55.5]} 16... Bxe5 {[%clk
0:03:32.3]} 17. Rxe5 {[%clk 0:03:53.3]} 17... Qxh3 {[%clk 0:03:29.8]} 18. Bxh3
{[%clk 0:03:46]} 18... Nf3+ {[%clk 0:03:27.5]} 19. Kh1 {[%clk 0:03:35.9]} 19...
Nxd2 {[%clk 0:03:26.7]} 20. Rxe7 {[%clk 0:03:34.2]} 20... Rab8 {[%clk
0:03:21.2]} 21. Bg2 {[%clk 0:03:26.1]} 21... d4 {[%clk 0:03:10.4]} 22. Nd5
{[%clk 0:03:01.3]} 22... Bxd5 {[%clk 0:02:42]} 23. Bxd5 {[%clk 0:02:58.7]} 23...
Rbd8 {[%clk 0:02:39.9]} 24. Bg2 {[%clk 0:02:54.7]} 24... c4 {[%clk 0:02:26.6]}
25. Re2 {[%clk 0:02:40.5]} 25... c3 {[%clk 0:02:22.3]} 26. bxc3 {[%clk
0:02:35.3]} 26... dxc3 {[%clk 0:02:20.8]} 27. Rae1 {[%clk 0:02:25.1]} 27... Rd4
{[%clk 0:02:09.2]} 28. Re7 {[%clk 0:02:04.7]} 28... a5 {[%clk 0:01:54.1]} 29.
Rc7 {[%clk 0:02:00.9]} 29... Rb4 {[%clk 0:01:35.3]} 30. Rxc3 {[%clk 0:01:55.9]}
30... Nb1 {[%clk 0:01:23.1]} 31. Rb3 {[%clk 0:01:53.8]} 31... Rxb3 {[%clk
0:01:20.9]} 32. axb3 {[%clk 0:01:52.7]} 32... Na3 {[%clk 0:01:08.8]} 33. Re2
{[%clk 0:01:42]} 33... Rd8 {[%clk 0:00:58.8]} 34. Rd2 {[%clk 0:01:14.2]} 34...
Kg7 {[%clk 0:00:50.9]} 35. Kg1 {[%clk 0:01:08.5]} 35... Rd6 {[%clk 0:00:33.2]}
36. Kf1 {[%clk 0:01:05.4]} 36... b5 {[%clk 0:00:26.6]} 37. Ke2 {[%clk
0:01:00.7]} 37... Nb1 {[%clk 0:00:24.8]} 38. Kd1 {[%clk 0:00:51.2]} 38... Nxd2
{[%clk 0:00:22.8]} 39. Kxd2 {[%clk 0:00:50.3]} 39... a4 {[%clk 0:00:19.7]} 40.
Kc1 {[%clk 0:00:45.1]} 40... a3 {[%clk 0:00:14.4]} 41. b4 {[%clk 0:00:42.4]}
41... Rd4 {[%clk 0:00:09.5]} 42. Kb1 {[%clk 0:00:37.4]} 42... Rxb4+ {[%clk
0:00:06.9]} 43. Ka2 {[%clk 0:00:35.9]} 43... Rb2+ {[%clk 0:00:02.6]} 44. Kxa3
{[%clk 0:00:33.6]} 44... Rxc2 {[%clk 0:00:01.4]} 45. Bd5 {[%clk 0:00:28.8]}
45... Rxf2 {[%clk 0:00:00.2]} 46. Kb4 {[%clk 0:00:27]} 1-0

[Event "Live Chess"]
[Site "Chess.com"]
[Date "2024.06.01"]
[Round "-"]
[White "ggosyaa"]
[Black "Dhaydon19"]
[Result "0-1"]
[WhiteElo "588"]
[BlackElo "2689"]
[TimeControl "300"]
[EndTime "10:45:07 PDT"]
[Termination "Dhaydon19 won by checkmate"]

1. d4 {[%clk 0:04:58.9]} 1... c6 {[%clk 0:04:59.1]} 2. c4 {[%clk 0:04:54.7]}
2... d5 {[%clk 0:04:58.7]} 3. Nc3 {[%clk 0:04:50]} 3... Nf6 {[%clk 0:04:58.3]}
4. Bf4 {[%clk 0:04:49]} 4... e6 {[%clk 0:04:57.9]} 5. e3 {[%clk 0:04:47.6]} 5...
Bd6 {[%clk 0:04:57.4]} 6. Bg3 {[%clk 0:04:44.3]} 6... Qe7 {[%clk 0:04:55.6]} 7.
Nf3 {[%clk 0:04:41]} 7... Nbd7 {[%clk 0:04:53.2]} 8. Bd3 {[%clk 0:04:30.9]} 8...
O-O {[%clk 0:04:51.6]} 9. c5 {[%clk 0:04:27.8]} 9... Bxg3 {[%clk 0:04:49.8]} 10.
hxg3 {[%clk 0:04:26.5]} 10... e5 {[%clk 0:04:48]} 11. Qe2 {[%clk 0:04:14.5]}
11... e4 {[%clk 0:04:45.6]} 12. Nxd5 {[%clk 0:04:05.5]} 12... cxd5 {[%clk
0:04:43.5]} 13. Ne5 {[%clk 0:04:00.5]} 13... Nxe5 {[%clk 0:04:39.1]} 14. dxe5
{[%clk 0:03:59.1]} 14... Qxe5 {[%clk 0:04:37.2]} 15. f4 {[%clk 0:03:52.6]} 15...
Qc7 {[%clk 0:04:31.1]} 16. O-O-O {[%clk 0:03:48.1]} 16... exd3 {[%clk
0:04:28.5]} 17. Qxd3 {[%clk 0:03:45.8]} 17... Qxc5+ {[%clk 0:04:27.1]} 18. Kb1
{[%clk 0:03:44.5]} 18... g6 {[%clk 0:04:26.5]} 19. f5 {[%clk 0:03:42.8]} 19...
Bxf5 {[%clk 0:04:23.7]} 20. e4 {[%clk 0:03:36.8]} 20... Bxe4 {[%clk 0:04:22]}
21. Qc2 {[%clk 0:03:34.3]} 21... Qxc2+ {[%clk 0:04:20.2]} 22. Ka1 {[%clk
0:03:32.5]} 22... Rac8 {[%clk 0:04:19.8]} 23. Rc1 {[%clk 0:03:29.2]} 23... Qxc1+
{[%clk 0:04:18.5]} 24. Rxc1 {[%clk 0:03:28.7]} 24... Rxc1# {[%clk 0:04:17.9]}
0-1